[Event "Hungarian Rapid-ch 2022"]
[Site "Ajka"]
[Date "2022.07.16"]
[Round "7.20"]
[White "Kolimar, Kristof Pal"]
[Black "Nemeth, Zoltan"]
[Result "1-0"]
[ECO "A41"]
[WhiteElo "2160"]
[BlackElo "2242"]
[Annotator "ChessBase"]
[PlyCount "92"]
[EventDate "2022.07.15"]
[EventType "swiss"]
[EventCountry "HUN"]
[SourceTitle "playchess.com"]
[Source "ChessBase"]
[SourceQuality "1"]
[TimeControl "900+10"]

1. Nf3 {[%emt 0:00:12]} d6 {[%emt 0:00:13]} 2. d4 {[%emt 0:00:02]} Bg4 {[%emt 0:00:04]} 3. c4 {[%emt 0:00:02]} e5 {[%emt 0:00:01]} 4. Nc3 {[%emt 0:00:43]} Bxf3 {[%emt 0:01:04]} 5. exf3 {[%emt 0:00:06]} exd4 {[%emt 0:00:02]} 6. Qxd4 {[%emt 0:00:01]} Nc6 {[%emt 0:00:01]} 7. Qd2 {[%emt 0:00:30]} Nf6 {[%emt 0:00:48]} 8. Be2 {[%emt 0:00:12]} Be7 {[%emt 0:00:05]} 9. O-O {[%emt 0:00:02]} O-O {[%emt 0:00:02]} 10. b3 {[%emt 0:00:02]} Nd7 {[%emt 0:00:48]} 11. Nd5 {[%emt 0:00:27]} Bf6 {[%emt 0:00:04]} 12. Nxf6+ {[%emt 0:00:02]} Nxf6 {[%emt 0:00:13]} 13. Bb2 {[%emt 0:00:01]} Re8 {[%emt 0:00:59]} 14. Rfe1 {[%emt 0:01:11]} Re6 {[%emt 0:00:03]} 15. Bd3 {[%emt 0:00:15]} Qf8 {[%emt 0:02:15]} 16. Bf5 {[%emt 0:04:38]} Rxe1+ {[%emt 0:00:14]} 17. Rxe1 {[%emt 0:00:01]} Re8 {[%emt 0:00:15]} 18. Re3 {[%emt 0:01:24]} Rxe3 {[%emt 0:00:13]} 19. fxe3 {[%emt 0:00:11]} Qe7 {[%emt 0:00:05]} 20. Kf2 {[%emt 0:00:40]} h6 {[%emt 0:00:25]} 21. g3 {[%emt 0:00:23]} Ne5 {[%emt 0:01:25]} 22. Kg2 {[%emt 0:02:57]} b6 {[%emt 0:00:01]} 23. Bc2 {[%emt 0:00:29]} a5 {[%emt 0:00:05]} 24. h3 {[%emt 0:00:20]} Nc6 {[%emt 0:01:16]} 25. g4 {[%emt 0:01:31]} Ne5 {[%emt 0:01:31]} 26. Qd4 {[%emt 0:00:29]} Ned7 {[%emt 0:00:35]} 27. h4 {[%emt 0:00:27]} Qe5 {[%emt 0:00:12]} 28. Qxe5 {[%emt 0:00:25]} Nxe5 {[%emt 0:00:21]} 29. Kg3 {[%emt 0:00:11]} Ned7 {[%emt 0:02:26]} 30. g5 {[%emt 0:01:03]} hxg5 {[%emt 0:00:12]} 31. hxg5 {[%emt 0:00:01]} Nh5+ {[%emt 0:00:53]} 32. Kg4 {[%emt 0:00:16]} g6 {[%emt 0:00:01]} 33. f4 {[%emt 0:00:18]} Ng7 {[%emt 0:01:42]} 34. a3 {[%emt 0:00:12]} Kf8 {[%emt 0:01:13]} 35. b4 {[%emt 0:00:01]} axb4 {[%emt 0:00:01]} 36. axb4 {[%emt 0:00:00]} c5 {[%emt 0:00:16]} 37. Ba4 {[%emt 0:00:42]} Nb8 {[%emt 0:00:17]} 38. bxc5 {[%emt 0:00:01]} bxc5 {[%emt 0:00:02]} 39. Bb5 {[%emt 0:00:06]} Ne6 {[%emt 0:00:07]} 40. Bf6 {[%emt 0:00:39]} Nc7 {[%emt 0:00:01]} 41. Bd8 {[%emt 0:00:05]} Nxb5 {[%emt 0:00:02]} 42. cxb5 {[%emt 0:00:01]} c4 {[%emt 0:00:39]} 43. Kf3 {[%emt 0:00:01]} d5 {[%emt 0:00:28]} 44. Bc7 {[%emt 0:00:05]} Nd7 {[%emt 0:00:04]} 45. b6 {[%emt 0:00:00]} c3 {[%emt 0:00:40]} 46. Ke2 {[%emt 0:00:02]} c2 1-0

[Event "Hungarian Rapid-ch 2022"]
[Site "Ajka"]
[Date "2022.07.16"]
[Round "7.21"]
[White "Horvath, Kristof"]
[Black "Laszlo, Janos"]
[Result "1-0"]
[ECO "C40"]
[WhiteElo "2053"]
[BlackElo "2214"]
[Annotator "ChessBase"]
[PlyCount "73"]
[EventDate "2022.07.15"]
[EventType "swiss"]
[EventCountry "HUN"]
[SourceTitle "playchess.com"]
[Source "ChessBase"]
[SourceQuality "1"]
[TimeControl "900+10"]

1. e4 {[%emt 0:00:20]} e5 {[%emt 0:00:14]} 2. Nf3 {[%emt 0:00:00]} d5 {[%emt 0:00:02]} 3. exd5 {[%emt 0:00:00]} Bd6 {[%emt 0:00:03]} 4. Nc3 {[%emt 0:00:48]} Nf6 {[%emt 0:00:04]} 5. Be2 {[%emt 0:00:40]} O-O {[%emt 0:00:11]} 6. d3 {[%emt 0:00:10]} h6 {[%emt 0:00:05]} 7. O-O {[%emt 0:00:14]} c6 {[%emt 0:00:12]} 8. dxc6 {[%emt 0:00:09]} Nxc6 {[%emt 0:00:02]} 9. Ne4 {[%emt 0:00:19]} Bc7 {[%emt 0:01:10]} 10. Be3 {[%emt 0:01:23]} Nd5 {[%emt 0:00:27]} 11. Bc5 {[%emt 0:03:23]} Re8 {[%emt 0:00:13]} 12. c4 {[%emt 0:00:29]} Nf4 {[%emt 0:00:30]} 13. h3 {[%emt 0:01:04]} Bf5 {[%emt 0:01:27]} 14. Be3 {[%emt 0:00:40]} Ne6 {[%emt 0:01:57]} 15. Nc3 {[%emt 0:00:19]} Qd7 {[%emt 0:02:11]} 16. Nd5 {[%emt 0:00:20]} Rad8 {[%emt 0:00:40]} 17. Bxh6 {[%emt 0:00:12]} Ne7 {[%emt 0:00:39]} 18. Nxc7 {[%emt 0:00:38]} Qxc7 {[%emt 0:00:07]} 19. Be3 {[%emt 0:00:04]} e4 {[%emt 0:00:23]} 20. Ne1 {[%emt 0:02:24]} exd3 {[%emt 0:00:28]} 21. Nxd3 {[%emt 0:00:30]} Rxd3 {[%emt 0:01:40]} 22. Bxd3 {[%emt 0:00:15]} Rd8 {[%emt 0:00:03]} 23. Qa4 {[%emt 0:00:58]} Bxd3 {[%emt 0:00:11]} 24. Rfd1 {[%emt 0:00:03]} b6 {[%emt 0:00:49]} 25. Rd2 {[%emt 0:00:43]} Bxc4 {[%emt 0:01:46]} 26. Rxd8+ {[%emt 0:00:04]} Nxd8 {[%emt 0:00:01]} 27. Qe8+ {[%emt 0:01:31]} Kh7 {[%emt 0:00:02]} 28. Rc1 {[%emt 0:00:01]} b5 {[%emt 0:01:47]} 29. b3 {[%emt 0:00:01]} Nf5 {[%emt 0:00:54]} 30. bxc4 {[%emt 0:00:12]} Nxe3 {[%emt 0:00:09]} 31. Qxe3 {[%emt 0:00:11]} bxc4 {[%emt 0:00:10]} 32. Qe4+ {[%emt 0:00:02]} g6 {[%emt 0:00:04]} 33. Rxc4 {[%emt 0:00:01]} Qb6 {[%emt 0:01:18]} 34. Qh4+ {[%emt 0:00:43]} Kg7 {[%emt 0:00:07]} 35. Qd4+ {[%emt 0:00:04]} Qxd4 {[%emt 0:00:07]} 36. Rxd4 {[%emt 0:00:01]} Ne6 {[%emt 0:00:04]} 37. Ra4 {[%emt 0:00:04]} 1-0

[Event "Hungarian Rapid-ch 2022"]
[Site "Ajka"]
[Date "2022.07.16"]
[Round "7.22"]
[White "Kelemen, David"]
[Black "Kokeny, Gabor"]
[Result "1-0"]
[ECO "B01"]
[WhiteElo "2136"]
[BlackElo "2204"]
[Annotator "ChessBase"]
[PlyCount "73"]
[EventDate "2022.07.15"]
[EventType "swiss"]
[EventCountry "HUN"]
[SourceTitle "playchess.com"]
[Source "ChessBase"]
[SourceQuality "1"]
[TimeControl "900+10"]

1. e4 {[%emt 0:00:11]} d5 {[%emt 0:00:13]} 2. exd5 {[%emt 0:00:09]} Qxd5 {[%emt 0:00:04]} 3. Nc3 {[%emt 0:00:01]} Qa5 {[%emt 0:00:04]} 4. d4 {[%emt 0:00:02]} Nf6 {[%emt 0:00:04]} 5. Bc4 {[%emt 0:00:06]} Bf5 {[%emt 0:00:03]} 6. Nf3 {[%emt 0:00:11]} c6 {[%emt 0:00:07]} 7. Bd2 {[%emt 0:00:02]} e6 {[%emt 0:00:11]} 8. Nd5 {[%emt 0:00:09]} Qd8 {[%emt 0:00:06]} 9. Nxf6+ {[%emt 0:00:02]} gxf6 {[%emt 0:00:04]} 10. Bb3 {[%emt 0:00:58]} Bg6 {[%emt 0:00:50]} 11. Qe2 {[%emt 0:00:07]} Nd7 {[%emt 0:05:20]} 12. Nh4 {[%emt 0:00:17]} f5 {[%emt 0:00:18]} 13. g3 {[%emt 0:00:32]} Be7 {[%emt 0:00:10]} 14. Ng2 {[%emt 0:00:32]} Nf6 {[%emt 0:00:17]} 15. Nf4 {[%emt 0:01:18]} Qxd4 {[%emt 0:00:13]} 16. O-O-O {[%emt 0:00:30]} Qe4 {[%emt 0:01:43]} 17. Qf1 {[%emt 0:00:41]} O-O-O {[%emt 0:02:19]} 18. Re1 {[%emt 0:01:50]} Qd4 {[%emt 0:00:07]} 19. Be3 {[%emt 0:00:20]} Qb4 {[%emt 0:00:31]} 20. Bxa7 {[%emt 0:00:08]} Ne4 {[%emt 0:00:08]} 21. c3 {[%emt 0:00:32]} Qa5 {[%emt 0:00:29]} 22. Be3 {[%emt 0:00:04]} b5 {[%emt 0:02:05]} 23. f3 {[%emt 0:01:28]} Nxc3 {[%emt 0:00:32]} 24. Qf2 {[%emt 0:01:03]} Na4 {[%emt 0:01:07]} 25. Bd4 {[%emt 0:01:24]} Rxd4 {[%emt 0:00:31]} 26. Qxd4 {[%emt 0:00:02]} Rd8 {[%emt 0:00:01]} 27. Qe3 {[%emt 0:00:02]} Nxb2 {[%emt 0:00:18]} 28. Kxb2 {[%emt 0:03:42]} Bf6+ {[%emt 0:01:36]} 29. Kb1 {[%emt 0:00:04]} Kb7 {[%emt 0:00:10]} 30. Rd1 {[%emt 0:00:12]} Qa3 {[%emt 0:00:07]} 31. Qe2 {[%emt 0:00:29]} Ra8 {[%emt 0:00:11]} 32. Rd3 {[%emt 0:01:00]} Qb4 {[%emt 0:00:09]} 33. Qd2 {[%emt 0:00:34]} Qc5 {[%emt 0:00:01]} 34. Rd7+ {[%emt 0:00:21]} Kb6 {[%emt 0:00:04]} 35. Re1 {[%emt 0:00:42]} Bc3 {[%emt 0:00:08]} 36. Qe3 {[%emt 0:00:29]} Bxe1 {[%emt 0:00:12]} 37. Rb7+ {[%emt 0:00:08]} 1-0

[Event "Hungarian Rapid-ch 2022"]
[Site "Ajka"]
[Date "2022.07.16"]
[Round "7.23"]
[White "Lazarne Vajda, Szidonia"]
[Black "Mozes, Ervin"]
[Result "1/2-1/2"]
[ECO "A04"]
[WhiteElo "2313"]
[BlackElo "2039"]
[Annotator "ChessBase"]
[PlyCount "34"]
[EventDate "2022.07.15"]
[EventType "swiss"]
[EventCountry "HUN"]
[SourceTitle "playchess.com"]
[Source "ChessBase"]
[SourceQuality "1"]
[TimeControl "900+10"]

1. Nf3 {[%emt 0:00:13]} c6 {[%emt 0:00:18]} 2. g3 {[%emt 0:00:09]} Nf6 {[%emt 0:00:09]} 3. Bg2 {[%emt 0:00:05]} d6 {[%emt 0:00:10]} 4. d4 {[%emt 0:00:07]} h6 {[%emt 0:00:03]} 5. O-O {[%emt 0:00:20]} Bf5 {[%emt 0:00:02]} 6. c4 {[%emt 0:00:17]} Nbd7 {[%emt 0:00:08]} 7. Nc3 {[%emt 0:00:02]} e6 {[%emt 0:00:30]} 8. Re1 {[%emt 0:01:16]} d5 {[%emt 0:00:30]} 9. Nd2 {[%emt 0:00:31]} Be7 {[%emt 0:01:04]} 10. e4 {[%emt 0:00:19]} dxe4 {[%emt 0:00:06]} 11. Ndxe4 {[%emt 0:00:03]} O-O {[%emt 0:00:26]} 12. Nxf6+ {[%emt 0:01:53]} Nxf6 {[%emt 0:00:18]} 13. d5 {[%emt 0:00:51]} cxd5 {[%emt 0:00:09]} 14. cxd5 {[%emt 0:00:02]} exd5 {[%emt 0:00:57]} 15. Nxd5 {[%emt 0:02:09]} Nxd5 {[%emt 0:02:33]} 16. Qxd5 {[%emt 0:00:38]} Qxd5 {[%emt 0:00:13]} 17. Bxd5 {[%emt 0:00:02]} Rad8 {[%emt 0:00:03]} 1/2-1/2

[Event "Hungarian Rapid-ch 2022"]
[Site "Ajka"]
[Date "2022.07.16"]
[Round "7.24"]
[White "Kantor, Gergely"]
[Black "Farkas, Lajos Dr."]
[Result "1-0"]
[ECO "A01"]
[WhiteElo "2582"]
[BlackElo "2058"]
[Annotator "ChessBase"]
[PlyCount "71"]
[EventDate "2022.07.15"]
[EventType "swiss"]
[EventCountry "HUN"]
[SourceTitle "playchess.com"]
[Source "ChessBase"]
[SourceQuality "1"]
[TimeControl "900+10"]

1. b3 {[%emt 0:00:11]} c6 {[%emt 0:00:15]} 2. Bb2 {[%emt 0:00:01]} d5 {[%emt 0:00:03]} 3. e3 {[%emt 0:00:03]} Nf6 {[%emt 0:00:03]} 4. f4 {[%emt 0:00:02]} Bg4 {[%emt 0:00:22]} 5. Nf3 {[%emt 0:00:03]} e6 {[%emt 0:00:14]} 6. h3 {[%emt 0:00:02]} Bxf3 {[%emt 0:00:14]} 7. Qxf3 {[%emt 0:00:02]} Ne4 {[%emt 0:00:58]} 8. g3 {[%emt 0:00:23]} Be7 {[%emt 0:00:08]} 9. Rg1 {[%emt 0:00:17]} Rg8 {[%emt 0:00:53]} 10. Bd3 {[%emt 0:00:06]} Bf6 {[%emt 0:01:46]} 11. Nc3 {[%emt 0:00:02]} Nxc3 {[%emt 0:00:12]} 12. dxc3 {[%emt 0:00:03]} Qa5 {[%emt 0:00:11]} 13. b4 {[%emt 0:00:41]} Qb6 {[%emt 0:00:08]} 14. Bxh7 {[%emt 0:00:25]} Rh8 {[%emt 0:00:04]} 15. Bd3 {[%emt 0:00:02]} a5 {[%emt 0:00:07]} 16. a3 {[%emt 0:00:01]} axb4 {[%emt 0:00:14]} 17. axb4 {[%emt 0:00:01]} Rxa1+ {[%emt 0:00:02]} 18. Bxa1 {[%emt 0:00:01]} Rxh3 {[%emt 0:00:14]} 19. Kf2 {[%emt 0:00:42]} Rh2+ {[%emt 0:00:46]} 20. Rg2 {[%emt 0:00:24]} Rxg2+ {[%emt 0:00:24]} 21. Qxg2 {[%emt 0:00:05]} c5 {[%emt 0:00:03]} 22. Qh1 {[%emt 0:00:13]} Nd7 {[%emt 0:01:26]} 23. g4 cxb4 {[%emt 0:00:15]} 24. g5 {[%emt 0:00:31]} Bxc3 {[%emt 0:00:11]} 25. Bxc3 {[%emt 0:00:01]} bxc3 {[%emt 0:00:02]} 26. Qh8+ {[%emt 0:00:02]} Ke7 {[%emt 0:00:02]} 27. Qxg7 {[%emt 0:00:02]} e5 {[%emt 0:02:16]} 28. f5 {[%emt 0:02:35]} e4 {[%emt 0:00:35]} 29. Be2 {[%emt 0:02:03]} Qc7 {[%emt 0:01:01]} 30. f6+ {[%emt 0:00:13]} Kd6 {[%emt 0:00:56]} 31. Qxf7 {[%emt 0:00:09]} Kc6 {[%emt 0:00:40]} 32. Qe6+ {[%emt 0:04:20]} Kc5 {[%emt 0:00:34]} 33. Qe7+ {[%emt 0:00:24]} Qd6 {[%emt 0:04:22]} 34. Kg2 {[%emt 0:01:03]} b5 {[%emt 0:00:43]} 35. Bxb5 {[%emt 0:00:10]} Ne5 {[%emt 0:00:15]} 36. Be2 {[%emt 0:01:07]} 1-0

[Event "Hungarian Rapid-ch 2022"]
[Site "Ajka"]
[Date "2022.07.16"]
[Round "7.25"]
[White "Miszler, Levente"]
[Black "Lizak, Peter"]
[Result "1/2-1/2"]
[ECO "A56"]
[WhiteElo "2243"]
[BlackElo "2400"]
[Annotator "ChessBase"]
[PlyCount "108"]
[EventDate "2022.07.15"]
[EventType "swiss"]
[EventCountry "HUN"]
[SourceTitle "playchess.com"]
[Source "ChessBase"]
[SourceQuality "1"]
[TimeControl "900+10"]

1. d4 {[%emt 0:00:11]} Nf6 {[%emt 0:00:11]} 2. c4 {[%emt 0:00:02]} c5 {[%emt 0:00:00]} 3. d5 {[%emt 0:00:04]} g6 {[%emt 0:00:02]} 4. Nc3 {[%emt 0:00:05]} Bg7 {[%emt 0:00:01]} 5. Nf3 {[%emt 0:00:07]} O-O {[%emt 0:00:03]} 6. e4 {[%emt 0:00:16]} d6 {[%emt 0:00:02]} 7. Bd3 {[%emt 0:00:05]} Bg4 {[%emt 0:00:03]} 8. h3 {[%emt 0:00:09]} Bxf3 {[%emt 0:00:03]} 9. Qxf3 {[%emt 0:00:03]} Nfd7 {[%emt 0:00:58]} 10. Qe2 {[%emt 0:00:38]} e6 {[%emt 0:00:37]} 11. O-O {[%emt 0:00:34]} exd5 {[%emt 0:00:03]} 12. Nxd5 {[%emt 0:00:53]} Nc6 {[%emt 0:00:03]} 13. Bf4 {[%emt 0:00:24]} Nb6 {[%emt 0:00:17]} 14. Rfd1 {[%emt 0:00:54]} Nxd5 {[%emt 0:00:30]} 15. cxd5 {[%emt 0:00:54]} Nd4 {[%emt 0:00:26]} 16. Qd2 {[%emt 0:00:06]} Re8 {[%emt 0:00:08]} 17. Be3 {[%emt 0:01:06]} a5 {[%emt 0:00:29]} 18. Re1 {[%emt 0:00:26]} a4 {[%emt 0:00:17]} 19. Rab1 {[%emt 0:00:33]} Qa5 {[%emt 0:01:29]} 20. Qxa5 {[%emt 0:00:34]} Rxa5 {[%emt 0:00:02]} 21. Bd2 {[%emt 0:00:29]} Raa8 {[%emt 0:00:05]} 22. Bc3 {[%emt 0:00:25]} a3 {[%emt 0:03:41]} 23. Bc4 {[%emt 0:05:23]} b5 {[%emt 0:02:07]} 24. Bxd4 {[%emt 0:00:24]} bxc4 {[%emt 0:06:45]} 25. Bxg7 {[%emt 0:00:36]} Kxg7 {[%emt 0:00:02]} 26. bxa3 {[%emt 0:00:47]} Rxa3 {[%emt 0:00:02]} 27. Rbc1 {[%emt 0:00:22]} Ra4 {[%emt 0:00:40]} 28. f3 {[%emt 0:00:34]} Kf6 {[%emt 0:00:13]} 29. Rc2 {[%emt 0:00:03]} Rea8 {[%emt 0:00:11]} 30. Ree2 {[%emt 0:00:15]} Ke5 {[%emt 0:00:07]} 31. Kf2 {[%emt 0:00:03]} Ra3 {[%emt 0:00:08]} 32. Rxc4 {[%emt 0:01:22]} Rxa2 {[%emt 0:00:01]} 33. f4+ {[%emt 0:00:03]} Kxf4 {[%emt 0:00:31]} 34. e5+ {[%emt 0:00:01]} Kf5 {[%emt 0:00:03]} 35. g4+ {[%emt 0:00:52]} Kg5 {[%emt 0:00:00]} 36. exd6 {[%emt 0:00:06]} Rxe2+ {[%emt 0:00:04]} 37. Kxe2 {[%emt 0:00:02]} Rd8 {[%emt 0:00:04]} 38. Rxc5 {[%emt 0:00:09]} Rxd6 {[%emt 0:00:03]} 39. Kf3 {[%emt 0:00:32]} h5 {[%emt 0:00:08]} 40. gxh5 {[%emt 0:00:11]} Kxh5 {[%emt 0:00:37]} 41. Ke4 {[%emt 0:00:04]} Kh4 {[%emt 0:00:24]} 42. Ke5 {[%emt 0:00:02]} Rd8 {[%emt 0:00:02]} 43. Rc3 {[%emt 0:00:45]} f5 {[%emt 0:00:25]} 44. d6 {[%emt 0:00:15]} g5 {[%emt 0:00:03]} 45. Ke6 {[%emt 0:00:09]} g4 {[%emt 0:00:03]} 46. hxg4 {[%emt 0:00:06]} fxg4 {[%emt 0:00:01]} 47. Ke7 {[%emt 0:00:08]} Rg8 {[%emt 0:00:07]} 48. d7 {[%emt 0:00:05]} g3 {[%emt 0:00:04]} 49. d8=Q {[%emt 0:00:04]} Rxd8 {[%emt 0:00:01]} 50. Kxd8 {[%emt 0:00:02]} g2 {[%emt 0:00:01]} 51. Rc1 {[%emt 0:00:01]} Kg3 {[%emt 0:00:02]} 52. Ke7 {[%emt 0:00:01]} Kf2 {[%emt 0:00:02]} 53. Kd6 {[%emt 0:00:02]} g1=Q {[%emt 0:00:02]} 54. Rxg1 {[%emt 0:00:01]} Kxg1 {[%emt 0:00:02]} 1/2-1/2

[Event "Hungarian Rapid-ch 2022"]
[Site "Ajka"]
[Date "2022.07.16"]
[Round "7.26"]
[White "Bodi, Tibor"]
[Black "Nemeth, Zalan"]
[Result "1-0"]
[ECO "A00"]
[WhiteElo "2301"]
[BlackElo "2194"]
[Annotator "ChessBase"]
[PlyCount "41"]
[EventDate "2022.07.15"]
[EventType "swiss"]
[EventCountry "HUN"]
[SourceTitle "playchess.com"]
[Source "ChessBase"]
[SourceQuality "1"]
[TimeControl "900+10"]

1. Nc3 {[%emt 0:00:13]} d5 {[%emt 0:00:12]} 2. e4 {[%emt 0:00:01]} d4 {[%emt 0:00:03]} 3. Nce2 {[%emt 0:00:02]} c5 {[%emt 0:00:03]} 4. Ng3 {[%emt 0:00:02]} Nc6 {[%emt 0:00:02]} 5. Bc4 {[%emt 0:00:32]} e5 {[%emt 0:00:06]} 6. Nf3 {[%emt 0:00:07]} Bd6 {[%emt 0:00:13]} 7. O-O {[%emt 0:00:09]} Nf6 {[%emt 0:00:10]} 8. d3 {[%emt 0:00:08]} h6 {[%emt 0:00:17]} 9. Nh4 {[%emt 0:00:07]} g6 {[%emt 0:02:33]} 10. Bd2 {[%emt 0:00:13]} Kf8 {[%emt 0:01:42]} 11. Qc1 {[%emt 0:00:24]} Kg7 {[%emt 0:00:09]} 12. a3 {[%emt 0:02:38]} Rb8 {[%emt 0:00:43]} 13. Ba2 {[%emt 0:01:21]} b5 {[%emt 0:00:22]} 14. f4 {[%emt 0:01:42]} Ng4 {[%emt 0:00:44]} 15. Nf3 {[%emt 0:01:13]} Be6 {[%emt 0:00:27]} 16. Bxe6 {[%emt 0:00:23]} fxe6 {[%emt 0:00:02]} 17. f5 {[%emt 0:00:07]} exf5 {[%emt 0:00:45]} 18. exf5 {[%emt 0:00:05]} Ne7 {[%emt 0:00:11]} 19. fxg6 {[%emt 0:00:14]} Qe8 {[%emt 0:01:10]} 20. Nh4 {[%emt 0:00:16]} Rb6 {[%emt 0:00:31]} 21. Nh5+ {[%emt 0:00:38]} 1-0

[Event "Hungarian Rapid-ch 2022"]
[Site "Ajka"]
[Date "2022.07.16"]
[Round "7.27"]
[White "Martini, Balazs"]
[Black "Kiss, Gergely"]
[Result "1/2-1/2"]
[ECO "D05"]
[WhiteElo "2348"]
[BlackElo "2166"]
[Annotator "ChessBase"]
[PlyCount "41"]
[EventDate "2022.07.15"]
[EventType "swiss"]
[EventCountry "HUN"]
[SourceTitle "playchess.com"]
[Source "ChessBase"]
[SourceQuality "1"]
[TimeControl "900+10"]

1. d4 {[%emt 0:00:54]} Nf6 {[%emt 0:00:31]} 2. Nf3 {[%emt 0:00:37]} d5 {[%emt 0:00:17]} 3. c3 {[%emt 0:01:07]} c5 {[%emt 0:00:22]} 4. e3 {[%emt 0:00:23]} e6 {[%emt 0:00:10]} 5. Bd3 {[%emt 0:00:17]} Nc6 {[%emt 0:00:04]} 6. O-O {[%emt 0:00:21]} Bd6 {[%emt 0:00:25]} 7. Nbd2 {[%emt 0:00:27]} O-O {[%emt 0:00:24]} 8. dxc5 {[%emt 0:00:55]} Bxc5 {[%emt 0:00:03]} 9. e4 {[%emt 0:00:04]} Qc7 {[%emt 0:01:14]} 10. exd5 {[%emt 0:02:16]} exd5 {[%emt 0:00:02]} 11. Nb3 {[%emt 0:00:51]} Bd6 {[%emt 0:00:17]} 12. Bg5 {[%emt 0:02:25]} Ne4 {[%emt 0:00:30]} 13. Be3 {[%emt 0:00:04]} Bg4 {[%emt 0:00:32]} 14. h3 {[%emt 0:00:22]} Bh5 {[%emt 0:00:33]} 15. Be2 {[%emt 0:00:08]} Rad8 {[%emt 0:00:17]} 16. Nbd4 {[%emt 0:00:07]} a6 {[%emt 0:00:22]} 17. Nxc6 {[%emt 0:00:43]} bxc6 {[%emt 0:00:59]} 18. Nd4 {[%emt 0:02:35]} Bg6 {[%emt 0:00:29]} 19. Bxa6 c5 20. Nb5 Rfe8 21. Nd4 1/2-1/2

[Event "Hungarian Rapid-ch 2022"]
[Site "Ajka"]
[Date "2022.07.16"]
[Round "7.28"]
[White "Udvardi, Zalan"]
[Black "Szalay-Ocsak, Bank"]
[Result "0-1"]
[ECO "B13"]
[WhiteElo "2310"]
[BlackElo "2146"]
[Annotator "ChessBase"]
[PlyCount "143"]
[EventDate "2022.07.15"]
[EventType "swiss"]
[EventCountry "HUN"]
[SourceTitle "playchess.com"]
[Source "ChessBase"]
[SourceQuality "1"]
[TimeControl "900+10"]

1. e4 {[%emt 0:00:10]} c6 {[%emt 0:00:13]} 2. d4 {[%emt 0:00:02]} d5 {[%emt 0:00:01]} 3. exd5 {[%emt 0:00:03]} cxd5 {[%emt 0:00:03]} 4. Bd3 Nc6 {[%emt 0:00:06]} 5. c3 {[%emt 0:00:02]} Qc7 {[%emt 0:00:20]} 6. Ne2 {[%emt 0:00:04]} Bg4 {[%emt 0:00:11]} 7. O-O {[%emt 0:00:01]} e6 {[%emt 0:00:50]} 8. Qe1 {[%emt 0:00:02]} Bxe2 {[%emt 0:01:09]} 9. Qxe2 {[%emt 0:00:04]} Nf6 {[%emt 0:00:50]} 10. Bg5 {[%emt 0:00:13]} Bd6 {[%emt 0:00:22]} 11. f4 {[%emt 0:00:06]} h6 {[%emt 0:03:06]} 12. Bxf6 {[%emt 0:00:05]} gxf6 {[%emt 0:00:03]} 13. Qf2 {[%emt 0:00:58]} f5 {[%emt 0:01:51]} 14. b4 {[%emt 0:00:08]} Ne7 {[%emt 0:01:12]} 15. Bb5+ {[%emt 0:00:18]} Kf8 {[%emt 0:00:22]} 16. Qe3 {[%emt 0:00:24]} Ng6 {[%emt 0:00:56]} 17. g3 {[%emt 0:00:00]} Rc8 {[%emt 0:00:44]} 18. Rf3 {[%emt 0:00:03]} h5 {[%emt 0:01:19]} 19. Nd2 {[%emt 0:00:03]} h4 {[%emt 0:00:29]} 20. a3 {[%emt 0:00:11]} hxg3 {[%emt 0:01:11]} 21. hxg3 {[%emt 0:00:01]} Ke7 {[%emt 0:00:48]} 22. c4 {[%emt 0:00:56]} a6 {[%emt 0:01:32]} 23. Ba4 {[%emt 0:00:46]} dxc4 {[%emt 0:00:18]} 24. Bc2 {[%emt 0:00:10]} Kf6 {[%emt 0:00:48]} 25. d5 {[%emt 0:00:31]} Nxf4 {[%emt 0:00:17]} 26. gxf4 {[%emt 0:00:20]} Rcg8+ {[%emt 0:00:01]} 27. Kf2 {[%emt 0:00:09]} Rh2+ {[%emt 0:00:17]} 28. Ke1 {[%emt 0:00:01]} Rgg2 {[%emt 0:00:18]} 29. Qd4+ {[%emt 0:01:13]} Ke7 {[%emt 0:00:07]} 30. Nf1 {[%emt 0:00:51]} Re2+ {[%emt 0:00:11]} 31. Kd1 {[%emt 0:00:02]} Rxc2 {[%emt 0:00:11]} 32. Nxh2 {[%emt 0:00:14]} Rxh2 {[%emt 0:00:02]} 33. Rc1 {[%emt 0:00:12]} Rh1+ {[%emt 0:00:19]} 34. Kc2 {[%emt 0:00:11]} Rxc1+ {[%emt 0:00:08]} 35. Kxc1 {[%emt 0:00:02]} b5 {[%emt 0:00:14]} 36. dxe6 {[%emt 0:00:06]} fxe6 {[%emt 0:00:08]} 37. Kc2 {[%emt 0:00:37]} Qc6 {[%emt 0:00:11]} 38. Qg7+ {[%emt 0:05:24]} Kd8 {[%emt 0:00:09]} 39. Re3 {[%emt 0:00:25]} Bxf4 {[%emt 0:00:12]} 40. Qf8+ {[%emt 0:01:27]} Kc7 {[%emt 0:00:09]} 41. Qe7+ {[%emt 0:00:33]} Qd7 {[%emt 0:00:07]} 42. Rxe6 {[%emt 0:00:31]} Qxe7 {[%emt 0:00:11]} 43. Rxe7+ {[%emt 0:00:01]} Kb6 {[%emt 0:00:11]} 44. Rf7 {[%emt 0:00:12]} Bc7 {[%emt 0:00:12]} 45. Rxf5 {[%emt 0:00:05]} a5 {[%emt 0:00:08]} 46. Rf6+ {[%emt 0:01:27]} Kb7 {[%emt 0:00:08]} 47. Re6 {[%emt 0:00:33]} axb4 {[%emt 0:00:10]} 48. axb4 {[%emt 0:00:01]} Bf4 {[%emt 0:00:13]} 49. Kc3 {[%emt 0:00:11]} Kc7 {[%emt 0:00:11]} 50. Kd4 {[%emt 0:00:09]} Bd6 {[%emt 0:00:06]} 51. Kc3 {[%emt 0:00:14]} Kc6 {[%emt 0:00:11]} 52. Rg6 {[%emt 0:00:39]} Kc7 {[%emt 0:00:10]} 53. Rg5 {[%emt 0:00:48]} Kc6 {[%emt 0:00:09]} 54. Rf5 {[%emt 0:00:06]} Be7 {[%emt 0:00:13]} 55. Rh5 {[%emt 0:00:08]} Bf6+ {[%emt 0:00:07]} 56. Kc2 {[%emt 0:00:00]} Be7 {[%emt 0:00:06]} 57. Rh6+ {[%emt 0:00:01]} Bd6 {[%emt 0:00:14]} 58. Kc3 {[%emt 0:00:11]} Kd5 {[%emt 0:00:10]} 59. Rg6 {[%emt 0:00:02]} Be5+ {[%emt 0:00:07]} 60. Kc2 {[%emt 0:00:00]} Bd6 {[%emt 0:00:05]} 61. Rg5+ {[%emt 0:00:08]} Kc6 {[%emt 0:00:02]} 62. Kc3 {[%emt 0:00:07]} Be7 {[%emt 0:00:24]} 63. Rf5 {[%emt 0:00:05]} Bd6 {[%emt 0:00:10]} 64. Rf7 {[%emt 0:00:02]} Be5+ {[%emt 0:00:06]} 65. Kc2 {[%emt 0:00:02]} Bd6 {[%emt 0:00:10]} 66. Rf6 {[%emt 0:01:13]} Kc7 {[%emt 0:00:17]} 67. Rf5 {[%emt 0:00:03]} Kc6 {[%emt 0:00:07]} 68. Kc3 {[%emt 0:00:04]} Be7 {[%emt 0:00:11]} 69. Rf1 {[%emt 0:00:16]} Bd6 {[%emt 0:00:12]} 70. Re1 {[%emt 0:00:08]} Kd5 {[%emt 0:00:11]} 71. Rd1+ {[%emt 0:00:46]} Kc6 {[%emt 0:00:06]} 72. Rh1 0-1